[Event "Titled Tuesday Blitz April 19 Early 2022"]
[White "Buchenau, Frank"]
[Black "Lauridsen, Jesper Morch"]
[WhiteFideId "4604350"]
[BlackFideId "1401890"]
[WhiteElo "2193"]
[BlackElo "2252"]
[Result "0-1"]
[Round "07"]
[TimeControl "180+1"]
[Date "2022.04.19"]
[WhiteClock "0:02:37"]
[BlackClock "0:02:34"]

1. e4 {[%clk 0:03:00]}  e6 {[%clk 0:02:59]} 2. d4 {[%clk 0:02:58]}  d5 {[%clk 0:02:59]} 3. Nc3 {[%clk 0:02:58]}  Bb4 {[%clk 0:02:57]} 4. Bd3 {[%clk 0:02:57]}  dxe4 {[%clk 0:02:55]} 5. Bxe4 {[%clk 0:02:57]}  Nf6 {[%clk 0:02:55]} 6. Bf3 {[%clk 0:02:57]}  O-O {[%clk 0:02:52]} 7. Ne2 {[%clk 0:02:57]}  Nc6 {[%clk 0:02:43]} 8. O-O {[%clk 0:02:56]}  Bxc3 {[%clk 0:02:42]} 9. bxc3 {[%clk 0:02:55]}  Re8 {[%clk 0:02:41]} 10. Rb1 {[%clk 0:02:54]}  e5 {[%clk 0:02:40]} 11. Bxc6 {[%clk 0:02:42]}  bxc6 {[%clk 0:02:39]} 12. dxe5 {[%clk 0:02:41]}  Qxd1 {[%clk 0:02:37]} 13. Rxd1 {[%clk 0:02:41]}  Rxe5 {[%clk 0:02:37]} 14. Bf4 {[%clk 0:02:37]}  Rxe2 {[%clk 0:02:34]} 0-1


[Site "https://www.chess.com"]

[Event "Titled Tuesday Blitz April 19 Early 2022"]
[White "Chigaev, Maksim"]
[Black "Mirzoev, Azer"]
[WhiteFideId "4108116"]
[BlackFideId "13400304"]
[WhiteElo "2478"]
[BlackElo "2525"]
[Result "1-0"]
[Round "07"]
[TimeControl "180+1"]
[Date "2022.04.19"]
[WhiteClock "0:00:46"]
[BlackClock "0:00:07"]

1. e4 {[%clk 0:03:00]}  Nf6 {[%clk 0:03:00]} 2. e5 {[%clk 0:02:59]}  Nd5 {[%clk 0:03:00]} 3. d4 {[%clk 0:03:00]}  d6 {[%clk 0:03:00]} 4. Nf3 {[%clk 0:03:00]}  dxe5 {[%clk 0:03:00]} 5. Nxe5 {[%clk 0:03:01]}  c6 {[%clk 0:03:00]} 6. Be2 {[%clk 0:03:02]}  Nd7 {[%clk 0:03:01]} 7. Nf3 {[%clk 0:02:57]}  N7f6 {[%clk 0:03:00]} 8. O-O {[%clk 0:02:57]}  Bg4 {[%clk 0:03:00]} 9. c4 {[%clk 0:02:56]}  Nb6 {[%clk 0:02:59]} 10. b3 {[%clk 0:02:28]}  e6 {[%clk 0:02:59]} 11. Nc3 {[%clk 0:02:26]}  Be7 {[%clk 0:02:57]} 12. h3 {[%clk 0:02:25]}  Bh5 {[%clk 0:02:57]} 13. Be3 {[%clk 0:02:24]}  O-O {[%clk 0:02:56]} 14. Ne5 {[%clk 0:02:24]}  Bxe2 {[%clk 0:02:56]} 15. Qxe2 {[%clk 0:02:25]}  a5 {[%clk 0:02:54]} 16. Rfd1 {[%clk 0:02:19]}  a4 {[%clk 0:02:47]} 17. Rab1 {[%clk 0:02:19]}  axb3 {[%clk 0:02:42]} 18. Rxb3 {[%clk 0:02:20]}  Ra3 {[%clk 0:02:13]} 19. Qb2 {[%clk 0:02:08]}  Rxb3 {[%clk 0:02:11]} 20. Qxb3 {[%clk 0:02:09]}  Qc7 {[%clk 0:01:48]} 21. Rb1 {[%clk 0:02:07]}  Bd8 {[%clk 0:01:35]} 22. Nf3 {[%clk 0:01:47]}  Qc8 {[%clk 0:01:15]} 23. d5 {[%clk 0:01:40]}  c5 {[%clk 0:01:10]} 24. dxe6 {[%clk 0:01:36]}  Qxe6 {[%clk 0:01:09]} 25. Bxc5 {[%clk 0:01:36]}  Nxc4 {[%clk 0:00:48]} 26. Bxf8 {[%clk 0:01:35]}  Kxf8 {[%clk 0:00:49]} 27. Re1 {[%clk 0:01:26]}  Qc6 {[%clk 0:00:47]} 28. Qb4+ {[%clk 0:01:25]}  Kg8 {[%clk 0:00:46]} 29. Qb5 {[%clk 0:01:21]}  Qxb5 {[%clk 0:00:37]} 30. Nxb5 {[%clk 0:01:22]}  Kf8 {[%clk 0:00:30]} 31. Ne5 {[%clk 0:01:16]}  Nxe5 {[%clk 0:00:29]} 32. Rxe5 {[%clk 0:01:16]}  Nd7 {[%clk 0:00:26]} 33. Re3 {[%clk 0:01:10]}  Bb6 {[%clk 0:00:24]} 34. Re2 {[%clk 0:01:08]}  Bc5 {[%clk 0:00:21]} 35. g3 {[%clk 0:01:04]}  g6 {[%clk 0:00:21]} 36. Kg2 {[%clk 0:01:04]}  h5 {[%clk 0:00:21]} 37. h4 {[%clk 0:01:04]}  Nf6 {[%clk 0:00:20]} 38. Rc2 {[%clk 0:01:03]}  b6 {[%clk 0:00:19]} 39. a4 {[%clk 0:01:03]}  Bb4 {[%clk 0:00:19]} 40. Rc4 {[%clk 0:01:02]}  Ba5 {[%clk 0:00:19]} 41. Rc7 {[%clk 0:01:02]}  Nd5 {[%clk 0:00:18]} 42. Rd7 {[%clk 0:01:02]}  Nf6 {[%clk 0:00:18]} 43. Rb7 {[%clk 0:01:01]}  Ne4 {[%clk 0:00:15]} 44. f3 {[%clk 0:00:57]}  Nc5 {[%clk 0:00:14]} 45. Ra7 {[%clk 0:00:54]}  Nxa4 {[%clk 0:00:10]} 46. Nd6 {[%clk 0:00:55]}  f5 {[%clk 0:00:10]} 47. Nc4 {[%clk 0:00:52]}  Nc3 {[%clk 0:00:09]} 48. Ne5 {[%clk 0:00:51]}  Nd5 {[%clk 0:00:07]} 49. Nxg6+ {[%clk 0:00:51]}  Ke8 {[%clk 0:00:08]} 50. Ne5 {[%clk 0:00:48]}  Bc3 {[%clk 0:00:07]} 51. Nc4 {[%clk 0:00:45]}  b5 {[%clk 0:00:07]} 52. Nd6+ {[%clk 0:00:45]}  Kf8 {[%clk 0:00:07]} 53. Nxb5 {[%clk 0:00:46]} 1-0


[Site "https://www.chess.com"]

[Event "Titled Tuesday Blitz April 19 Early 2022"]
[White "De Souza, Cristiano Gomes"]
[Black "Omelja, Artem"]
[WhiteFideId "2151758"]
[BlackFideId "14119846"]
[WhiteElo "2068"]
[BlackElo "2382"]
[Result "0-1"]
[Round "07"]
[TimeControl "180+1"]
[Date "2022.04.19"]
[WhiteClock "0:00:20"]
[BlackClock "0:00:11"]

1. d4 {[%clk 0:03:00]}  d5 {[%clk 0:02:58]} 2. c4 {[%clk 0:02:59]}  c6 {[%clk 0:02:59]} 3. Nf3 {[%clk 0:03:00]}  Nf6 {[%clk 0:02:59]} 4. Nc3 {[%clk 0:02:59]}  e6 {[%clk 0:02:59]} 5. Bg5 {[%clk 0:02:58]}  h6 {[%clk 0:02:58]} 6. Bh4 {[%clk 0:02:57]}  g5 {[%clk 0:02:57]} 7. Bg3 {[%clk 0:02:54]}  dxc4 {[%clk 0:02:58]} 8. a4 {[%clk 0:02:54]}  Bb4 {[%clk 0:02:56]} 9. e3 {[%clk 0:02:47]}  b5 {[%clk 0:02:54]} 10. Nd2 {[%clk 0:02:47]}  Bxc3 {[%clk 0:02:43]} 11. bxc3 {[%clk 0:02:46]}  Bb7 {[%clk 0:02:42]} 12. Rb1 {[%clk 0:02:43]}  Nd5 {[%clk 0:02:31]} 13. Qc2 {[%clk 0:02:38]}  Qd7 {[%clk 0:02:25]} 14. e4 {[%clk 0:02:35]}  Nb6 {[%clk 0:02:24]} 15. axb5 {[%clk 0:02:33]}  cxb5 {[%clk 0:02:24]} 16. Be2 {[%clk 0:02:30]}  a6 {[%clk 0:02:22]} 17. O-O {[%clk 0:02:27]}  Nc6 {[%clk 0:02:20]} 18. f4 {[%clk 0:02:27]}  O-O-O {[%clk 0:02:18]} 19. Bf3 {[%clk 0:02:22]}  Rhg8 {[%clk 0:01:49]} 20. e5 {[%clk 0:02:21]}  Ne7 {[%clk 0:01:37]} 21. Ne4 {[%clk 0:02:18]}  Bxe4 {[%clk 0:01:36]} 22. Bxe4 {[%clk 0:02:15]}  Ned5 {[%clk 0:01:37]} 23. Rbe1 {[%clk 0:02:10]}  gxf4 {[%clk 0:01:21]} 24. Bxf4 {[%clk 0:02:10]}  Nxf4 {[%clk 0:01:21]} 25. Rxf4 {[%clk 0:02:10]}  Rg7 {[%clk 0:01:22]} 26. Ref1 {[%clk 0:02:09]}  Rdg8 {[%clk 0:01:21]} 27. Qf2 {[%clk 0:02:06]}  Nd5 {[%clk 0:01:15]} 28. Rxf7 {[%clk 0:02:02]}  Rxf7 {[%clk 0:01:14]} 29. Qxf7 {[%clk 0:02:01]}  Qxf7 {[%clk 0:01:15]} 30. Rxf7 {[%clk 0:02:00]}  Nxc3 {[%clk 0:01:15]} 31. Bb7+ {[%clk 0:01:56]}  Kb8 {[%clk 0:01:13]} 32. Bxa6 {[%clk 0:01:57]}  Rd8 {[%clk 0:01:09]} 33. Rb7+ {[%clk 0:01:54]}  Ka8 {[%clk 0:01:09]} 34. Re7 {[%clk 0:01:51]}  Rxd4 {[%clk 0:01:06]} 35. Rxe6 {[%clk 0:01:49]}  b4 {[%clk 0:01:07]} 36. Rb6 {[%clk 0:01:31]}  b3 {[%clk 0:00:59]} 37. Bxc4 {[%clk 0:01:29]}  Rxc4 {[%clk 0:00:58]} 38. Rxb3 {[%clk 0:01:30]}  Ne4 {[%clk 0:00:57]} 39. h3 {[%clk 0:01:25]}  Rc5 {[%clk 0:00:57]} 40. Rb6 {[%clk 0:01:20]}  h5 {[%clk 0:00:54]} 41. Re6 {[%clk 0:01:19]}  Kb7 {[%clk 0:00:47]} 42. g4 {[%clk 0:01:17]}  hxg4 {[%clk 0:00:28]} 43. hxg4 {[%clk 0:01:15]}  Rc3 {[%clk 0:00:29]} 44. Rg6 {[%clk 0:01:11]}  Kc7 {[%clk 0:00:27]} 45. Kg2 {[%clk 0:01:09]}  Kd7 {[%clk 0:00:27]} 46. Ra6 {[%clk 0:01:01]}  Rg3+ {[%clk 0:00:26]} 47. Kh2 {[%clk 0:00:59]}  Rxg4 {[%clk 0:00:26]} 48. Kh3 {[%clk 0:00:50]}  Rg5 {[%clk 0:00:23]} 49. Ra5 {[%clk 0:00:43]}  Ke6 {[%clk 0:00:21]} 50. Ra6+ {[%clk 0:00:41]}  Kf5 {[%clk 0:00:20]} 51. e6 {[%clk 0:00:38]}  Rg8 {[%clk 0:00:13]} 52. e7 {[%clk 0:00:35]}  Kf4 {[%clk 0:00:11]} 53. Re6 {[%clk 0:00:23]}  Ng5+ {[%clk 0:00:10]} 54. Kh2 {[%clk 0:00:20]}  Nxe6 {[%clk 0:00:11]} 0-1


[Site "https://www.chess.com"]

[Event "Titled Tuesday Blitz April 19 Early 2022"]
[White "Demin, Vladimir"]
[Black "Dronavalli, Harika"]
[WhiteFideId "4167457"]
[BlackFideId "5015197"]
[WhiteElo "2387"]
[BlackElo "2382"]
[Result "0-1"]
[Round "07"]
[TimeControl "180+1"]
[Date "2022.04.19"]
[WhiteClock "0:00:01"]
[BlackClock "0:00:28"]

1. e4 {[%clk 0:03:00]}  c5 {[%clk 0:02:59]} 2. Nf3 {[%clk 0:03:00]}  e6 {[%clk 0:03:00]} 3. c3 {[%clk 0:03:00]}  d5 {[%clk 0:02:57]} 4. e5 {[%clk 0:03:00]}  d4 {[%clk 0:02:56]} 5. Bd3 {[%clk 0:02:59]}  Nc6 {[%clk 0:02:54]} 6. O-O {[%clk 0:02:58]}  Nge7 {[%clk 0:02:54]} 7. Be4 {[%clk 0:02:58]}  Bd7 {[%clk 0:02:48]} 8. d3 {[%clk 0:02:56]}  Qc7 {[%clk 0:02:47]} 9. Re1 {[%clk 0:02:55]}  Rd8 {[%clk 0:02:37]} 10. Na3 {[%clk 0:02:43]}  a6 {[%clk 0:02:33]} 11. Nc4 {[%clk 0:02:34]}  Ng6 {[%clk 0:02:33]} 12. Bg5 {[%clk 0:02:33]}  Rc8 {[%clk 0:02:24]} 13. cxd4 {[%clk 0:01:58]}  cxd4 {[%clk 0:02:24]} 14. Rc1 {[%clk 0:01:54]}  Bb4 {[%clk 0:02:23]} 15. Re2 {[%clk 0:01:49]}  b5 {[%clk 0:02:23]} 16. a3 {[%clk 0:01:40]}  bxc4 {[%clk 0:02:05]} 17. axb4 {[%clk 0:01:36]}  Ncxe5 {[%clk 0:01:40]} 18. dxc4 {[%clk 0:01:19]}  d3 {[%clk 0:01:22]} 19. Re1 {[%clk 0:01:10]}  O-O {[%clk 0:01:17]} 20. Nxe5 {[%clk 0:00:55]}  Nxe5 {[%clk 0:01:15]} 21. Bf4 {[%clk 0:00:53]}  f6 {[%clk 0:01:11]} 22. Bxe5 {[%clk 0:00:49]}  fxe5 {[%clk 0:01:11]} 23. Qxd3 {[%clk 0:00:38]}  h6 {[%clk 0:01:11]} 24. Qg3 {[%clk 0:00:36]}  Rf6 {[%clk 0:01:00]} 25. Bb1 {[%clk 0:00:24]}  Rcf8 {[%clk 0:00:58]} 26. Qd3 {[%clk 0:00:24]}  Bc6 {[%clk 0:00:39]} 27. Re2 {[%clk 0:00:16]}  Qb6 {[%clk 0:00:38]} 28. Qe3 {[%clk 0:00:06]}  Qxb4 {[%clk 0:00:34]} 29. Qxe5 {[%clk 0:00:04]}  Qb3 {[%clk 0:00:30]} 30. f3 {[%clk 0:00:03]}  Qb6+ {[%clk 0:00:29]} 31. Kh1 {[%clk 0:00:03]}  Qb7 {[%clk 0:00:30]} 32. Rg1 {[%clk 0:00:02]}  Rxf3 {[%clk 0:00:27]} 33. gxf3 {[%clk 0:00:01]}  Bxf3+ {[%clk 0:00:28]} 0-1


[Site "https://www.chess.com"]

[Event "Titled Tuesday Blitz April 19 Early 2022"]
[White "Derjabin, Ilja"]
[Black "Chandratreya, Prachiti"]
[WhiteFideId "14104768"]
[BlackFideId "46611215"]
[WhiteElo "2341"]
[BlackElo "1737"]
[Result "1-0"]
[Round "07"]
[TimeControl "180+1"]
[Date "2022.04.19"]
[WhiteClock "0:00:16"]
[BlackClock "0:00:35"]

1. d4 {[%clk 0:02:55]}  Nf6 {[%clk 0:02:59]} 2. c4 {[%clk 0:02:51]}  g6 {[%clk 0:02:59]} 3. Nc3 {[%clk 0:01:42]}  Bg7 {[%clk 0:03:00]} 4. e4 {[%clk 0:01:35]}  Bf8 {[%clk 0:03:01]} 5. Nge2 {[%clk 0:01:34]}  d6 {[%clk 0:02:57]} 6. Ng3 {[%clk 0:01:30]}  Bg7 {[%clk 0:02:56]} 7. Be2 {[%clk 0:01:27]}  Nbd7 {[%clk 0:02:51]} 8. O-O {[%clk 0:01:22]}  c5 {[%clk 0:02:50]} 9. d5 {[%clk 0:01:22]}  h5 {[%clk 0:02:47]} 10. f4 {[%clk 0:01:21]}  a6 {[%clk 0:02:43]} 11. a4 {[%clk 0:01:21]}  b6 {[%clk 0:02:42]} 12. e5 {[%clk 0:01:21]}  dxe5 {[%clk 0:02:41]} 13. f5 {[%clk 0:01:21]}  O-O {[%clk 0:02:36]} 14. Nce4 {[%clk 0:01:15]}  Nxe4 {[%clk 0:02:33]} 15. Nxe4 {[%clk 0:01:13]}  Nf6 {[%clk 0:02:32]} 16. Nxf6+ {[%clk 0:01:12]}  exf6 {[%clk 0:02:33]} 17. Bd3 {[%clk 0:01:09]}  Qe8 {[%clk 0:02:20]} 18. Be4 {[%clk 0:01:07]}  Bb7 {[%clk 0:02:17]} 19. h4 {[%clk 0:00:50]}  b5 {[%clk 0:02:15]} 20. Qc2 {[%clk 0:00:45]}  Kh7 {[%clk 0:02:04]} 21. Qe2 {[%clk 0:00:42]}  Kg8 {[%clk 0:02:02]} 22. Qc2 {[%clk 0:00:41]}  gxf5 {[%clk 0:01:50]} 23. Rxf5 {[%clk 0:00:40]}  Bc8 {[%clk 0:01:44]} 24. Rxh5 {[%clk 0:00:39]}  f5 {[%clk 0:01:44]} 25. Bxf5 {[%clk 0:00:39]}  Bxf5 {[%clk 0:01:43]} 26. Qxf5 {[%clk 0:00:39]}  f6 {[%clk 0:01:43]} 27. Be3 {[%clk 0:00:31]}  Qc8 {[%clk 0:01:29]} 28. Qh7+ {[%clk 0:00:29]}  Kf7 {[%clk 0:01:29]} 29. Bh6 {[%clk 0:00:19]}  Qg4 {[%clk 0:01:24]} 30. Bxg7 {[%clk 0:00:20]}  Qxg7 {[%clk 0:01:23]} 31. Qf5 {[%clk 0:00:18]}  Kg8 {[%clk 0:01:13]} 32. Ra3 {[%clk 0:00:16]}  b4 {[%clk 0:00:57]} 33. Re3 {[%clk 0:00:15]}  Rf7 {[%clk 0:00:54]} 34. Kh2 {[%clk 0:00:15]}  Rd8 {[%clk 0:00:48]} 35. Rg3 {[%clk 0:00:14]}  Rd6 {[%clk 0:00:39]} 36. Rxg7+ {[%clk 0:00:14]}  Kxg7 {[%clk 0:00:40]} 37. Rh7+ {[%clk 0:00:14]}  Kg8 {[%clk 0:00:40]} 38. Rxf7 {[%clk 0:00:14]}  Kxf7 {[%clk 0:00:41]} 39. Qh7+ {[%clk 0:00:15]}  Kf8 {[%clk 0:00:41]} 40. h5 {[%clk 0:00:15]}  a5 {[%clk 0:00:39]} 41. h6 {[%clk 0:00:15]}  e4 {[%clk 0:00:37]} 42. Qg7+ {[%clk 0:00:16]}  Ke8 {[%clk 0:00:36]} 43. h7 {[%clk 0:00:17]}  e3 {[%clk 0:00:35]} 44. h8=Q# {[%clk 0:00:16]} 1-0


[Site "https://www.chess.com"]

[Event "Titled Tuesday Blitz April 19 Early 2022"]
[White "Donchenko, Alexander"]
[Black "Janaszak, Dawid"]
[WhiteFideId "24603295"]
[BlackFideId "1119206"]
[WhiteElo "2539"]
[BlackElo "2199"]
[Result "0-1"]
[Round "07"]
[TimeControl "180+1"]
[Date "2022.04.19"]
[WhiteClock "0:01:16"]
[BlackClock "0:00:19"]

1. e4 {[%clk 0:02:55]}  c5 {[%clk 0:02:59]} 2. Nf3 {[%clk 0:02:55]}  Nc6 {[%clk 0:02:59]} 3. c3 {[%clk 0:02:55]}  e5 {[%clk 0:02:56]} 4. Bb5 {[%clk 0:02:55]}  Nf6 {[%clk 0:02:52]} 5. O-O {[%clk 0:02:54]}  d6 {[%clk 0:02:41]} 6. d4 {[%clk 0:02:53]}  cxd4 {[%clk 0:02:41]} 7. cxd4 {[%clk 0:02:54]}  exd4 {[%clk 0:02:34]} 8. Nxd4 {[%clk 0:02:54]}  Bd7 {[%clk 0:02:34]} 9. Nc3 {[%clk 0:02:52]}  Be7 {[%clk 0:02:33]} 10. h3 {[%clk 0:02:45]}  O-O {[%clk 0:02:33]} 11. Be3 {[%clk 0:02:45]}  Re8 {[%clk 0:02:28]} 12. Rc1 {[%clk 0:02:36]}  Bf8 {[%clk 0:02:26]} 13. Bd3 {[%clk 0:02:36]}  Ne5 {[%clk 0:02:23]} 14. Bg5 {[%clk 0:02:33]}  h6 {[%clk 0:02:19]} 15. Bh4 {[%clk 0:02:32]}  Ng6 {[%clk 0:02:18]} 16. Bg3 {[%clk 0:02:28]}  Qb6 {[%clk 0:02:16]} 17. Bc4 {[%clk 0:02:23]}  Qxb2 {[%clk 0:02:04]} 18. Nf5 {[%clk 0:02:11]}  Nxe4 {[%clk 0:01:35]} 19. Nxe4 {[%clk 0:02:06]}  Bxf5 {[%clk 0:01:35]} 20. Nxd6 {[%clk 0:02:03]}  Bxd6 {[%clk 0:01:30]} 21. Qxd6 {[%clk 0:02:04]}  Be6 {[%clk 0:01:22]} 22. Rb1 {[%clk 0:02:02]}  Qc2 {[%clk 0:01:13]} 23. Rfc1 {[%clk 0:01:57]}  Qf5 {[%clk 0:01:11]} 24. Rxb7 {[%clk 0:01:53]}  Bxc4 {[%clk 0:01:01]} 25. Rxc4 {[%clk 0:01:54]}  Rad8 {[%clk 0:00:53]} 26. Qc5 {[%clk 0:01:23]}  Rd1+ {[%clk 0:00:53]} 27. Kh2 {[%clk 0:01:23]}  Ree1 {[%clk 0:00:53]} 28. Bb8 {[%clk 0:01:19]}  Rh1+ {[%clk 0:00:38]} 29. Kg3 {[%clk 0:01:19]}  Rd3+ {[%clk 0:00:35]} 30. f3 {[%clk 0:01:18]}  Rxf3+ {[%clk 0:00:30]} 31. gxf3 {[%clk 0:01:15]}  Rxh3+ {[%clk 0:00:30]} 32. Kf2 {[%clk 0:01:14]}  Qxf3+ {[%clk 0:00:27]} 33. Ke1 {[%clk 0:01:15]}  Rh1+ {[%clk 0:00:23]} 34. Kd2 {[%clk 0:01:15]}  Rd1+ {[%clk 0:00:19]} 35. Kc2 {[%clk 0:01:15]}  Qd3+ {[%clk 0:00:19]} 36. Kb2 {[%clk 0:01:16]}  Rb1# {[%clk 0:00:19]} 0-1


[Site "https://www.chess.com"]

[Event "Titled Tuesday Blitz April 19 Early 2022"]
[White "Fernandez Siles, Luis"]
[Black "Mortazavi, Ali"]
[WhiteFideId "2209420"]
[BlackFideId "401323"]
[WhiteElo "2212"]
[BlackElo "2339"]
[Result "0-1"]
[Round "07"]
[TimeControl "180+1"]
[Date "2022.04.19"]
[WhiteClock "0:01:28"]
[BlackClock "0:01:40"]

1. d4 {[%clk 0:03:00]}  Nf6 {[%clk 0:02:59]} 2. c4 {[%clk 0:03:00]}  g6 {[%clk 0:02:59]} 3. Nc3 {[%clk 0:02:59]}  Bg7 {[%clk 0:03:00]} 4. e4 {[%clk 0:02:59]}  O-O {[%clk 0:03:01]} 5. Nf3 {[%clk 0:03:00]}  d6 {[%clk 0:03:01]} 6. Be2 {[%clk 0:03:00]}  Bg4 {[%clk 0:03:02]} 7. Be3 {[%clk 0:02:51]}  Nbd7 {[%clk 0:03:02]} 8. Ng1 {[%clk 0:02:51]}  e5 {[%clk 0:03:02]} 9. Bxg4 {[%clk 0:02:26]}  Nxg4 {[%clk 0:03:01]} 10. Qxg4 {[%clk 0:02:27]}  exd4 {[%clk 0:03:01]} 11. Bg5 {[%clk 0:02:27]}  f6 {[%clk 0:03:01]} 12. Nd5 {[%clk 0:01:55]}  fxg5 {[%clk 0:02:55]} 13. h4 {[%clk 0:01:55]}  c6 {[%clk 0:02:40]} 14. Qe6+ {[%clk 0:01:49]}  Rf7 {[%clk 0:02:34]} 15. Nb4 {[%clk 0:01:43]}  Nc5 {[%clk 0:02:04]} 16. Qh3 {[%clk 0:01:39]}  g4 {[%clk 0:02:04]} 17. Qxg4 {[%clk 0:01:34]}  Qa5 {[%clk 0:01:45]} 18. a3 {[%clk 0:01:33]}  Nd3+ {[%clk 0:01:45]} 19. Ke2 {[%clk 0:01:31]}  Nxb4 {[%clk 0:01:43]} 20. Nf3 {[%clk 0:01:28]}  d3+ {[%clk 0:01:40]} 0-1


[Site "https://www.chess.com"]

[Event "Titled Tuesday Blitz April 19 Early 2022"]
[White "Fonseca Manrique, Enrique"]
[Black "Buscar, Michael"]
[WhiteFideId "5114330"]
[BlackFideId "2603616"]
[WhiteElo "2554"]
[BlackElo "2010"]
[Result "1-0"]
[Round "07"]
[TimeControl "180+1"]
[Date "2022.04.19"]
[WhiteClock "0:00:18"]
[BlackClock "0:00:14"]

1. e4 {[%clk 0:03:00]}  c5 {[%clk 0:02:58]} 2. Nf3 {[%clk 0:03:00]}  Nc6 {[%clk 0:02:58]} 3. Bb5 {[%clk 0:03:01]}  Nf6 {[%clk 0:02:57]} 4. Nc3 {[%clk 0:02:57]}  g6 {[%clk 0:02:57]} 5. O-O {[%clk 0:02:57]}  Bg7 {[%clk 0:02:57]} 6. Bxc6 {[%clk 0:02:50]}  bxc6 {[%clk 0:02:56]} 7. e5 {[%clk 0:02:50]}  Nd5 {[%clk 0:02:56]} 8. Ne4 {[%clk 0:02:47]}  c4 {[%clk 0:02:48]} 9. Re1 {[%clk 0:02:45]}  O-O {[%clk 0:02:47]} 10. b3 {[%clk 0:02:38]}  Ba6 {[%clk 0:02:41]} 11. Bb2 {[%clk 0:02:38]}  Nc7 {[%clk 0:02:38]} 12. Nc5 {[%clk 0:02:34]}  Rb8 {[%clk 0:02:19]} 13. Qe2 {[%clk 0:02:28]}  Qc8 {[%clk 0:02:11]} 14. h4 {[%clk 0:02:17]}  Ne6 {[%clk 0:02:01]} 15. Nxa6 {[%clk 0:02:13]}  Qxa6 {[%clk 0:02:01]} 16. Bc3 {[%clk 0:02:02]}  d5 {[%clk 0:01:42]} 17. exd6 {[%clk 0:02:00]}  Bxc3 {[%clk 0:01:41]} 18. dxe7 {[%clk 0:01:57]}  Bxa1 {[%clk 0:01:41]} 19. exf8=Q+ {[%clk 0:01:57]}  Kxf8 {[%clk 0:01:27]} 20. Rxa1 {[%clk 0:01:56]}  Qa3 {[%clk 0:01:11]} 21. Qe5 {[%clk 0:01:50]}  Rd8 {[%clk 0:01:06]} 22. bxc4 {[%clk 0:01:34]}  h5 {[%clk 0:01:02]} 23. Rb1 {[%clk 0:01:27]}  Qxa2 {[%clk 0:01:00]} 24. Rb7 {[%clk 0:01:22]}  Kg8 {[%clk 0:00:56]} 25. Qf6 {[%clk 0:01:17]}  Rf8 {[%clk 0:00:46]} 26. Ne5 {[%clk 0:01:03]}  Qxc2 {[%clk 0:00:43]} 27. Rxf7 {[%clk 0:00:53]}  Qb1+ {[%clk 0:00:11]} 28. Kh2 {[%clk 0:00:52]}  Qf5 {[%clk 0:00:11]} 29. Qxf5 {[%clk 0:00:43]}  gxf5 {[%clk 0:00:11]} 30. Rxa7 {[%clk 0:00:44]}  c5 {[%clk 0:00:09]} 31. Ra6 {[%clk 0:00:33]}  Nf4 {[%clk 0:00:09]} 32. g3 {[%clk 0:00:32]}  Ne2 {[%clk 0:00:08]} 33. Rg6+ {[%clk 0:00:28]}  Kh7 {[%clk 0:00:08]} 34. Rg5 {[%clk 0:00:28]}  Nd4 {[%clk 0:00:08]} 35. Rxh5+ {[%clk 0:00:28]}  Kg7 {[%clk 0:00:08]} 36. Kg2 {[%clk 0:00:27]}  Re8 {[%clk 0:00:08]} 37. f4 {[%clk 0:00:25]}  Ra8 {[%clk 0:00:07]} 38. Rg5+ {[%clk 0:00:23]}  Kf6 {[%clk 0:00:07]} 39. h5 {[%clk 0:00:23]}  Ra2 {[%clk 0:00:06]} 40. Rg6+ {[%clk 0:00:23]}  Ke7 {[%clk 0:00:06]} 41. h6 {[%clk 0:00:20]}  Rxd2+ {[%clk 0:00:07]} 42. Kh3 {[%clk 0:00:19]}  Rd1 {[%clk 0:00:07]} 43. Kh4 {[%clk 0:00:17]}  Ne6 {[%clk 0:00:05]} 44. Rxe6+ {[%clk 0:00:12]}  Kxe6 {[%clk 0:00:05]} 45. Kg5 {[%clk 0:00:13]}  Rh1 {[%clk 0:00:05]} 46. Ng6 {[%clk 0:00:14]}  Rg1 {[%clk 0:00:05]} 47. h7 {[%clk 0:00:12]}  Rxg3+ {[%clk 0:00:06]} 48. Kh6 {[%clk 0:00:13]}  Rh3+ {[%clk 0:00:06]} 49. Kg7 {[%clk 0:00:13]}  Rd3 {[%clk 0:00:06]} 50. h8=Q {[%clk 0:00:13]}  Rd7+ {[%clk 0:00:07]} 51. Kh6 {[%clk 0:00:14]}  Rd4 {[%clk 0:00:06]} 52. Qe8+ {[%clk 0:00:14]}  Kd6 {[%clk 0:00:07]} 53. Qe5+ {[%clk 0:00:14]}  Kc6 {[%clk 0:00:07]} 54. Qxf5 {[%clk 0:00:14]}  Rxc4 {[%clk 0:00:08]} 55. Ne7+ {[%clk 0:00:14]}  Kb6 {[%clk 0:00:08]} 56. Qd5 {[%clk 0:00:14]}  Rxf4 {[%clk 0:00:08]} 57. Qd6+ {[%clk 0:00:15]}  Kb5 {[%clk 0:00:08]} 58. Qxf4 {[%clk 0:00:16]}  c4 {[%clk 0:00:09]} 59. Qd4 {[%clk 0:00:16]}  Kb4 {[%clk 0:00:10]} 60. Nf5 {[%clk 0:00:16]}  Kb3 {[%clk 0:00:11]} 61. Ne3 {[%clk 0:00:16]}  c3 {[%clk 0:00:11]} 62. Qd3 {[%clk 0:00:17]}  Kb2 {[%clk 0:00:12]} 63. Qc2+ {[%clk 0:00:17]}  Ka1 {[%clk 0:00:12]} 64. Qxc3+ {[%clk 0:00:17]}  Kb1 {[%clk 0:00:13]} 65. Qd2 {[%clk 0:00:17]}  Ka1 {[%clk 0:00:14]} 66. Nc4 {[%clk 0:00:17]}  Kb1 {[%clk 0:00:14]} 67. Qb2# {[%clk 0:00:18]} 1-0


[Site "https://www.chess.com"]